Cogmind - Beta 13 *** ADVENTURER MODE // 2024.04.16 @ 20:54:45 Player: Augustus XLII Result: Destroyed by Y-54 Guardian with Gatling Laser Performance ------------- Evolutions (3) 1500 Regions Visited (7) 1400 Robots Destroyed (153) 765 Value Destroyed (5034) 5034 Prototype IDs (9) 180 Alien Tech Used (0) 0 Bonus (204) 204 TOTAL SCORE: 9083 Bonus ------- High Alert Combat Kills 75 Follower Combat Kills 21 Aligned with FarCom 300 Friendly Fire -192 Cogmind --------- Core Integrity 0/700 Matter 184/300 Energy 446/480 System Corruption 0% Temperature Warm (151) Movement Hovering (181) Ox2 Location -7/Storage Parts ------- > --- POWER (2) -------- Improved Deuterium Engine Improved Deuterium Engine > --- PROPULSION (4) --- Wheel Gravmag System Gravmag System > --- UTILITY (4) ------ Small Storage Unit Kinecellerator Advanced ECM Suite Improved Shield Generator > --- WEAPON (3) ------- Precision Assault Rifle Mini Assault Cannon Precision Grenade Launcher > --- INVENTORY (8) ---- Improved Deuterium Engine Micro Nuclear Core Micro Nuclear Core Improved Targeting Computer Advanced ECM Suite Precision Grenade Launcher Peak State ------------ > --- POWER ------------ Heavy Deuterium Engine Heavy Deuterium Engine > --- PROPULSION ------- Carbon-fiber Leg Carbon-fiber Leg Carbon-fiber Leg Improved Carbon-fiber Leg > --- UTILITY ---------- Large Storage Unit Advanced Targeting Computer Advanced ECM Suite Hacking Suite > --- WEAPON ----------- Gauss Rifle Advanced Assault Cannon Advanced Assault Cannon > --- INVENTORY -------- Carbon-fiber Leg Large Storage Unit Improved Sensor Array Advanced Targeting Computer Kinecellerator Core Shielding Improved Light Armor Plating Hardlight Generator Improved Shield Generator Improved Shield Generator Lightning Gun Gauss Rifle Gauss Rifle Rocket Launcher Remote Datajack [Rating: 50] Favorites ----------- Power Heavy Deuterium Engine Engine Heavy Deuterium Engine Power Core Micro Nuclear Core Propulsion Carbon-fiber Leg Leg Carbon-fiber Leg Wheel Wheel Hover Unit Gravmag System Flight Unit Flight Unit Utility Large Storage Unit Device Advanced ECM Suite Storage Large Storage Unit Processor Advanced Targeting Computer Hackware Hacking Suite Protection Core Shielding Weapon Gauss Rifle Energy Gun Heavy Laser Energy Cannon Latent Energy Streamer Ballistic Gun Gauss Rifle Ballistic Cannon Advanced Assault Cannon Launcher Improved Grenade Launcher Special Weapon Remote Datajack Special Melee Weapon Datajack Build | -11 -10 -10 -10 -9 -8 -7 -7 ------- Run | Yrd Mat Min Exi Min Mat Fac Sto Slots Evolved 6 | . . . . . 4 2 . Power 1 | . . . . . 1 . . Propulsion 2 | . . . . . 1 1 . Utility 2 | . . . . . 1 1 . Weapon 1 | . . . . . 1 . . Parts Attached 142 | . 17 5 2 1 50 54 13 Power 22 | . 1 1 . . 10 7 3 Engine 14 | . . 1 . . 7 4 2 Core 8 | . 1 . . . 3 3 1 Reactor . | . . . . . . . . Propulsion 28 | . 3 . . 1 14 10 . Treads . | . . . . . . . . Leg 18 | . . . . . 11 7 . Wheel 6 | . 3 . . 1 1 1 . Hover 2 | . . . . . . 2 . Flight 2 | . . . . . 2 . . Utility 26 | . 2 1 . . 7 15 1 Device 13 | . . . . . 4 8 1 Storage 3 | . 1 . . . 1 1 . Processor 4 | . . . . . 2 2 . Hackware 1 | . . . . . . 1 . Protection 5 | . 1 1 . . . 3 . Artifact . | . . . . . . . . Weapon 66 | . 11 3 2 . 19 22 9 Energy Gun 10 | . 4 . . . 4 2 . Energy Cannon 2 | . 1 . 1 . . . . Ballistic Gun 20 | . . . . . 6 10 4 Ballistic Cannon 12 | . 3 2 1 . 2 3 1 Launcher 16 | . 2 1 . . 5 4 4 Special Weapon 5 | . 1 . . . 1 3 . Impact Weapon . | . . . . . . . . Slashing Weapon . | . . . . . . . . Piercing Weapon . | . . . . . . . . Special Melee Weapon 1 | . . . . . 1 . . Unidentified Prototypes 9 | . 1 . 1 . 2 1 4 Parts Lost 21 | . . . . 1 7 13 . Power 6 | . . . . 1 3 2 . Propulsion 8 | . . . . . 2 6 . Utility . | . . . . . . . . Weapon 7 | . . . . . 2 5 . Highest Loss Streak 8 | . . . . 1 3 8 . To Critical Strikes . | . . . . . . . . Average Slot Usage (%) 92 | . 93 99 100 98 94 89 90 Engine 9 | . 6 12 14 13 9 8 11 Core 4 | . 7 1 . . 6 4 3 Leg 14 | . . . . . 21 18 . Wheel 8 | . 27 28 28 27 3 2 7 Hover 2 | . . . . . . 4 15 Device 8 | . . . . . 8 11 15 Storage 8 | . 14 14 14 14 8 5 7 Processor 6 | . . . . . 9 7 6 Hackware 1 | . . . . . . 2 . Protection 3 | . 9 13 14 14 . 1 . Energy Gun 2 | . 8 . . . 5 . . Energy Cannon 1 | . 4 . 5 14 1 . . Ballistic Gun 7 | . . . . . 5 10 12 Ballistic Cannon 6 | . 9 19 8 14 6 3 . Launcher 4 | . 3 5 14 . 6 2 7 Naked Turns 59 | . . . . . . 59 . Heaviest Build 63 | 14 34 41 47 47 61 63 50 Greatest Support 63 | 20 26 26 26 26 45 63 18 Greatest Overweight (x) 14 | . 1 1 1 2 14 2 2 Average Overweight (x) . | . . 1 1 1 1 . 1 Largest Inventory Capacity 15 | 8 15 15 15 15 15 15 8 Average Capacity 13 | 8 13 15 15 15 14 11 8 Most Carried 15 | 7 13 13 14 15 15 15 8 Average Carried 11 | 6 8 12 13 14 12 10 7 Final Capacity 15 | 8 15 15 15 15 15 8 8 Final Carried 15 | 7 12 13 14 15 13 8 6 Class Distribution -------------------- 46% | Skirmisher 29% | Mutant 16% | Hacker-Skirmisher 3% | Scavenger-Skirmisher Dominant Class ---------------- Mutant | -10/Materials Mutant | -10/Mines Mutant | -10/Exiles Mutant | -9/Mines Skirmisher | -8/Materials Skirmisher | -7/Factory Skirmisher | -7/Storage Resources | -11 -10 -10 -10 -9 -8 -7 -7 ----------- Run | Yrd Mat Min Exi Min Mat Fac Sto Matter Collected 3734 | 200 218 119 . 139 1212 1602 244 Remotely . | . . . . . . . . Salvage Created 4812 | 80 304 87 . 277 1950 1799 315 Parts 285 | 5 18 10 . 20 100 117 15 Haulers Intercepted 3 | . . . . . 3 . . Recyclers Shooed 3 | . 1 . . . 1 1 . Parts Field Recycled . | . . . . . . . . Retrieved Matter . | . . . . . . . . Parts Self-Destructed . | . . . . . . . . Prevented . | . . . . . . . . Kills | -11 -10 -10 -10 -9 -8 -7 -7 ------- Run | Yrd Mat Min Exi Min Mat Fac Sto Combat Hostiles Destroyed 102 | . 4 7 . 7 39 41 4 Guns 33 | . 2 . . . 9 19 3 Cannons 39 | . 1 5 . 3 19 11 . AOE 29 | . 1 2 . 4 10 11 1 Classes Destroyed 16 | 2 4 2 . 2 5 1 . Worker 14 | . 4 . . 1 3 5 1 Builder 5 | . 2 . . 1 2 . . Tunneler 2 | 1 . . . 1 . . . Hauler 3 | . . . . . 3 . . Recycler 8 | 1 1 . . . 4 1 1 Operator 3 | . . . . . 3 . . Watcher 15 | . 3 . . . 5 6 1 Swarmer 25 | . . 6 . 4 8 7 . Grunt 34 | . 4 . . 2 19 7 2 Brawler 1 | . . . . 1 . . . Duelist 2 | . . . . . 1 1 . Protector 1 | . . . . . 1 . . Sentry 20 | . . 1 . . 8 10 1 Demolisher 1 | . . . . 1 . . . Hunter 11 | . . . . . 2 8 1 Programmer 8 | . . . . . . 8 . Best Kill Streak 9 | 2 8 2 . 5 9 9 5 Combat Bots Only 8 | . 2 2 . 4 5 8 3 Max Kills in Single Turn 6 | 1 4 2 . 5 6 4 2 Gunslinging . | . . . . . . . . Exploded 3 | . 1 2 . 3 2 3 1 Melee . | . . . . . . . . Uniques/NPCs Destroyed . | . . . . . . . . Combat | -11 -10 -10 -10 -9 -8 -7 -7 -------- Run | Yrd Mat Min Exi Min Mat Fac Sto Hostile Shots Fired 980 | . 20 21 . 14 160 628 137 Missed 297 | . 6 3 . 5 40 196 47 Damage Taken 5223 | . 191 136 . 238 1301 2988 369 Core 1024 | . 46 15 . 24 236 652 51 Absorbed by Shields 447 | . . . . . 248 70 129 Redirected to Shielding 13 | . . 3 . 3 4 3 . Ignored by Resistances 1752 | . 56 42 . 66 436 982 170 Regen/Repaired (Parts) 385 | . . . . . 121 264 . Core Remaining (%) 74 | 100 . . . 66 57 . . Volleys Fired 301 | 3 34 13 . 11 102 118 20 Largest 3 | 2 2 2 . 2 3 3 3 Hottest 139 | 100 110 70 . 117 139 129 112 Shots Fired 615 | 6 51 18 . 14 194 286 46 Gun 355 | 6 26 . . . 101 185 37 Cannon 211 | . 17 17 . 14 84 74 5 Launcher 41 | . 5 1 . . 7 24 4 Special 8 | . 3 . . . 2 3 . Kinetic 425 | . 2 17 . 11 119 234 42 Thermal 98 | 6 44 . . . 48 . . Explosive 41 | . 5 1 . . 7 24 4 Electromagnetic 48 | . . . . 3 20 25 . Robot Hit Streak 34 | 6 8 7 . 2 34 20 12 Robot Miss Streak 5 | . 5 2 . 2 3 3 1 Penetration Max 1 | . . . . 1 1 1 1 Secondary Targets 1 | . . . . . . 1 . Max Gunslinging Chain 1 | . . . . . . 1 . Shots Hit Robots 405 | 6 24 11 . 7 145 175 37 Core Hits 261 | 3 21 8 . 11 92 109 17 Critical Kills 11 | . . . . 2 7 2 . Critical Parts Destroyed 11 | . . 2 . 1 5 3 . Critical Strikes 37 | 1 . 3 . 3 24 6 . Burn 6 | 1 . . . . 5 . . Destroy 22 | . . 2 . 3 12 5 . Blast 9 | . . 1 . . 7 1 . Melee Attacks 4 | . . . . . 4 . . Impact . | . . . . . . . . Slashing . | . . . . . . . . Piercing . | . . . . . . . . Sneak Attacks 3 | . . . . . 3 . . Combat Hostiles . | . . . . . . . . Follow-up Attacks . | . . . . . . . . Damage Inflicted 12087 | 74 691 329 . 785 3909 5549 750 Guns 4649 | 74 191 . . . 1214 2602 568 Cannons 3101 | . 143 205 . 186 1255 1221 91 Explosions 4230 | . 345 124 . 580 1388 1702 91 Melee . | . . . . . . . . Ramming 107 | . 12 . . 19 52 24 . Kinetic 6172 | . 37 205 . 176 1662 3433 659 Thermal 1661 | 74 297 . . . 1248 42 . Explosive 2939 | . 345 124 . . 719 1660 91 Electromagnetic 1208 | . . . . 590 228 390 . Impact . | . . . . . . . . Slashing . | . . . . . . . . Piercing . | . . . . . . . . Highest Corruption 7 | . . . . 7 1 . . Average Corruption 1 | . . . . 4 1 . . Corruption Purged . | . . . . . . . . Corruption Blocked . | . . . . . . . . Effects 19 | . . . . 7 12 . . Message Errors 4 | . . . . 2 2 . . Matter Fused 6 | . . . . 3 3 . . Energy Discharges 4 | . . . . 1 3 . . Parts Rejected 1 | . . . . . 1 . . Parts Fused 1 | . . . . 1 . . . Data Loss (minor) 2 | . . . . . 2 . . Data Loss (major) 1 | . . . . . 1 . . Overload Shots . | . . . . . . . . Overflow Damage 167 | . 2 1 . 15 127 22 . Projectiles 43 | . . 1 . 15 15 12 . Explosions 110 | . 2 . . . 98 10 . Melee 14 | . . . . . 14 . . Knockbacks 17 | . . 2 . . 11 4 . Impact . | . . . . . . . . Kinetic 17 | . . 2 . . 11 4 . Secondary . | . . . . . . . . Self-Inflicted Damage 403 | . 44 . . 50 240 69 . Shots 10 | . 1 . . 1 6 2 . Rammed 7 | . 1 . . 2 4 . . Targets Rammed 13 | . 1 . . 2 7 3 . Kicked 6 | . . . . . 3 3 . Crushed . | . . . . . . . . Highest Temperature 694 | 117 417 54 . 159 427 694 146 Average Temperature 102 | 60 87 19 . 62 78 143 33 Received Heat Transfer 1729 | . 105 18 . 9 598 943 56 Effects 44 | . 1 . . . 3 40 . Shutdowns 7 | . . . . . 1 6 . Energy Bleed 6 | . 1 . . . 1 4 . Interference 4 | . . . . . . 4 . Matter Decay 6 | . . . . . 1 5 . Short Circuit 5 | . . . . . . 5 . Damage (minor) 4 | . . . . . . 4 . Damage (major) 11 | . . . . . . 11 . Damage (core) 1 | . . . . . . 1 . Siege Activations . | . . . . . . . . Robots Corrupted . | . . . . . . . . Combat Hostiles . | . . . . . . . . Parts Fried 5 | . . . . 2 . 3 . Impact Corruptions 1 | . . . . . 1 . . Robots Melted 1 | . . . . . 1 . . Combat Hostiles 1 | . . . . . 1 . . Parts Melted 9 | 1 3 . . . 5 . . Heat Transferred 3140 | 296 777 . . . 2017 50 . Parts Sabotaged . | . . . . . . . . Parts Stolen . | . . . . . . . . Parts Stripped . | . . . . . . . . Power Chain Reactions 2 | . . . . . 1 1 . Latent Energy Used 375 | . . . . 375 . . . LE Corruption 7 | . . . . 7 . . . Alert | -11 -10 -10 -10 -9 -8 -7 -7 ------- Run | Yrd Mat Min Exi Min Mat Fac Sto Peak Influence 533 | 10 217 172 . 239 533 281 199 Initial 75 | . 5 7 . . 75 . . Average 108 | 7 77 71 . 159 195 69 45 Maximum Alert Level 2 | . 1 . . 1 2 1 . Low Security (%) 78 | 100 90 100 . 64 48 90 100 Level 1 18 | . 9 . . 35 42 9 . Level 2 2 | . . . . . 8 . . Level 3 . | . . . . . . . . Level 4 . | . . . . . . . . Level 5 . | . . . . . . . . High Security . | . . . . . . . . Max Security . | . . . . . . . . Squads Dispatched 27 | . . . . . 10 17 . Investigation 5 | . . . . . 4 1 . Extermination 8 | . . . . . . 8 . Reinforcement 7 | . . . . . 4 3 . Assault 2 | . . . . . 1 1 . Garrison 5 | . . . . . 1 4 . Intercept . | . . . . . . . . Searches Triggered . | . . . . . . . . Construction Impeded 4 | . . . . . 2 2 . Haulers Reinforced . | . . . . . . . . Active Scanning Responses . | . . . . . . . . Cargo Convoy Interrupts . | . . . . . . . . Stealth | -11 -10 -10 -10 -9 -8 -7 -7 --------- Run | Yrd Mat Min Exi Min Mat Fac Sto Distress Signals 7 | . . . . . 3 3 1 Communications Jammed . | . . . . . . . . Distress Signals . | . . . . . . . . Times Spotted 162 | . 10 7 . 20 63 55 7 Peak Tracking Total 12 | . 3 3 . 12 5 5 3 Tactical Retreats 12 | . . 2 . . 2 5 3 Traps | -11 -10 -10 -10 -9 -8 -7 -7 ------- Run | Yrd Mat Min Exi Min Mat Fac Sto Traps Triggered 4 | . . . . . 2 . 2 Indirectly . | . . . . . . . . Trap Hack Attempts . | . . . . . . . . Triggered . | . . . . . . . . Disarmed 1 | . . . . . 1 . . Reprogrammed 18 | . 6 . . . . 12 . Reused 4 | . 2 . . . . 2 . Traps Extracted . | . . . . . . . . Installed . | . . . . . . . . Triggered 4 | . 2 . . . . 2 . Machines | -11 -10 -10 -10 -9 -8 -7 -7 ---------- Run | Yrd Mat Min Exi Min Mat Fac Sto Machines Disabled 14 | . . . . . 10 4 . Max in Single Turn 4 | . . . . . 4 1 . Garrison Access 2 | . . . . . 1 1 . Machines Repaired . | . . . . . . . . Machines Dismantled . | . . . . . . . . Machines Sabotaged . | . . . . . . . . Overloaded Fab Kills . | . . . . . . . . Hacking | -11 -10 -10 -10 -9 -8 -7 -7 --------- Run | Yrd Mat Min Exi Min Mat Fac Sto Machines Accessed 41 | . 7 . 3 . 11 18 2 Terminals 25 | . 6 . . . 6 11 2 Fabricators . | . . . . . . . . Repair Stations 5 | . 1 . . . 1 3 . Recycling Units 4 | . . . . . 2 2 . Scanalyzers 3 | . . . . . 2 1 . Garrison Access 1 | . . . . . . 1 . Total Hacks 132 | . 17 . 26 . 48 37 4 Successful 93 | . 7 . 26 . 34 24 2 Failed 39 | . 10 . . . 14 13 2 Catastrophic 6 | . . . . . 3 3 . Database Lockouts . | . . . . . . . . Manual 23 | . 7 . 2 . 9 5 . Terminals 52 | . 14 . . . 15 19 4 Fabricators . | . . . . . . . . Repair Stations 13 | . 3 . . . 4 6 . Recycling Units 13 | . . . . . 8 5 . Scanalyzers 25 | . . . . . 21 4 . Garrison Access 3 | . . . . . . 3 . Terminal Hacks 52 | . 6 . 26 . 7 11 2 Record 26 | . . . 26 . . . . Open Door 1 | . . . . . . . 1 Open DSF 3 | . . . . . . 3 . Terminal Index 1 | . . . . . . . 1 Unreport Threat 3 | . 1 . . . 1 1 . Locate Traps 4 | . . . . . . 4 . Disarm Traps 1 | . . . . . 1 . . Reprogram Traps 3 | . 1 . . . . 2 . Recall Reinforcements 2 | . . . . . 2 . . Recall Assault 1 | . . . . . . 1 . Hauler Manifests 1 | . 1 . . . . . . Zone Layout 6 | . 3 . . . 3 . . Fabricator Hacks . | . . . . . . . . Repair Station Hacks 11 | . 1 . . . 4 6 . Scan Component 5 | . . . . . 2 3 . Repair 5 | . . . . . 2 3 . Refit 1 | . 1 . . . . . . Recycling Unit Hacks 7 | . . . . . 5 2 . Report Inventory 3 | . . . . . 3 . . Retrieve Matter 3 | . . . . . 1 2 . Retrieve Components 1 | . . . . . 1 . . Scanalyzer 21 | . . . . . 18 3 . Insert Component 11 | . . . . . 10 1 . Analyze 10 | . . . . . 8 2 . Garrison Access Hacks 2 | . . . . . . 2 . Unlock Access 1 | . . . . . . 1 . Coupler Status 1 | . . . . . . 1 . Unauthorized Hacks . | . . . . . . . . Terminals . | . . . . . . . . Fabricators . | . . . . . . . . Repair Stations . | . . . . . . . . Recycling Units . | . . . . . . . . Scanalyzers . | . . . . . . . . Garrison Access . | . . . . . . . . Data Cores Recovered . | . . . . . . . . Used . | . . . . . . . . Hacking Detections 25 | . 4 . . . 8 11 2 Full Trace Events 5 | . 1 . . . 4 . . Feedback Events . | . . . . . . . . Feedback Blocked . | . . . . . . . . Robot Schematics Acquired . | . . . . . . . . Robots Built . | . . . . . . . . Authchips . | . . . . . . . . Time . | . . . . . . . . Total Robot Build Rating . | . . . . . . . . Part Schematics Acquired 7 | . . . . . 6 1 . Parts Built . | . . . . . . . . Authchips . | . . . . . . . . Time . | . . . . . . . . Total Part Build Rating . | . . . . . . . . Parts Repaired 5 | . . . . . 2 3 . Time 168 | . . . . . 64 104 . Parts Recycled . | . . . . . . . . Recycled Matter . | . . . . . . . . Retrieved Matter 538 | . . . . . . 538 . Retrieved Components 10 | . . . . . 10 . . Parts Scanalyzed 11 | . . . . . 10 1 . Part Schematics Acquired 7 | . . . . . 6 1 . Parts Damaged 4 | . . . . . 4 . . Bothacking | -11 -10 -10 -10 -9 -8 -7 -7 ------------ Run | Yrd Mat Min Exi Min Mat Fac Sto Used RIF Installer . | . . . . . . . . Robots Hacked 3 | . . . . . 1 2 . Non-combat 3 | . . . . . 1 2 . Combat . | . . . . . . . . Robot Hacks Applied 4 | . . . . . 2 2 . parse_system 2 | . . . . . 1 1 . no_distress 1 | . . . . . 1 . . find_chute 1 | . . . . . . 1 . Relay Couplers Released 7 | . . . . . 3 4 . Machine Destruction 4 | . . . . . 3 1 . Programmers 3 | . . . . . . 3 . Fabnet Peak Effective % . | . . . . . . . . Robots Rewired . | . . . . . . . . Allies Hacked . | . . . . . . . . Hacks Repelled . | . . . . . . . . Allies | -11 -10 -10 -10 -9 -8 -7 -7 -------- Run | Yrd Mat Min Exi Min Mat Fac Sto Total Allies 3 | . . . . 3 . . . Largest Group 3 | . . . . 3 . . . Highest-Rated Group 40 | . . . . 40 . . . Highest-Rated Ally 16 | . . . . 16 . . . Total Orders . | . . . . . . . . Ally Attacks 20 | . . . . 20 . . . Total Damage 155 | . . . . 155 . . . Kills 3 | . . . . 3 . . . Allies Corrupted . | . . . . . . . . Allies Melted . | . . . . . . . . Intel | -11 -10 -10 -10 -9 -8 -7 -7 ------- Run | Yrd Mat Min Exi Min Mat Fac Sto Robot Analysis Total . | . . . . . . . . Derelict Logs Recovered 1 | . . . . 1 . . . Drone Launches . | . . . . . . . . Drone Recoveries . | . . . . . . . . Exploration | -11 -10 -10 -10 -9 -8 -7 -7 ------------- Run | Yrd Mat Min Exi Min Mat Fac Sto Turns Passed 14025 | 26 1015 774 653 364 3916 6578 699 Spaces Moved 7516 | 14 832 681 619 274 1625 3344 127 Core 124 | . . . . . 5 119 . Treads . | . . . . . . . . Legs 3438 | 14 . . . . 1311 2113 . Wheels 2915 | . 832 681 619 274 309 200 . Hover 1039 | . . . . . . 912 127 Flight . | . . . . . . . . Fastest Speed 50 | 120 90 105 105 105 101 50 121 Average Speed 137 | 120 102 105 105 105 177 140 177 Slowest Speed 750 | 120 105 105 105 130 750 260 181 Overloaded Moves . | . . . . . . . . Propulsion Burnouts . | . . . . . . . . Robots Hopped . | . . . . . . . . Cave-ins Triggered . | . . . . . . . . Exploration Rate (%) 64 | 2 99 98 93 55 87 64 14 Regions Visited 7 Branch Regions 4 Pre-discovered Areas 1 | . . . . 1 . . . Known Exits Taken . | . . . . . . . . Unknown Exits Taken 7 | 1 1 1 1 1 1 1 . Scrap Searched 2 | . . 1 . 1 . . . Spaces Dug 5 | . . . . . 1 4 . Terrain Destroyed 381 | . 32 6 . 47 120 139 37 Melee . | . . . . . . . . Projectile 38 | . . 1 . 9 19 8 1 AOE 341 | . 32 5 . 38 100 130 36 Terrain Rammed . | . . . . . . . . Walls Destroyed . | . . . . . . . . Machines Disabled . | . . . . . . . . Actions | -11 -10 -10 -10 -9 -8 -7 -7 --------- Run | Yrd Mat Min Exi Min Mat Fac Sto Total 10651 | 17 939 721 621 335 2467 4990 561 Wait 2506 | . 23 19 . 46 605 1422 391 Move 7509 | 13 831 680 618 273 1624 3343 127 Hop . | . . . . . . . . Pick Up 82 | 1 17 1 1 1 36 23 2 Fast Attach 43 | . 3 3 . 1 14 14 8 Attach 46 | . 7 . . . 19 19 1 Detach 5 | . . . . . 3 2 . Swap 55 | . 7 2 2 . 17 23 4 Drop 87 | . 16 3 . 1 36 23 8 Fire 301 | 3 34 13 . 11 102 118 20 Melee 4 | . . . . . 4 . . Ram 7 | . 1 . . 2 4 . . Kick 6 | . . . . . 3 3 . Crush . | . . . . . . . . Escape Stasis . | . . . . . . . . Rewire . | . . . . . . . . Trap . | . . . . . . . . Miscellaneous . | . . . . . . . . Route ------- -11/Scrapyard -10/Materials (discovered 5 exits: [*Mat x3] / [*Min x2]) -10/Mines (discovered 3 exits: [*Mat x2] / *Exi) -10/Exiles (discovered 2 exits: [*Min x2]) -9/Mines (discovered 2 exits: *Mat x2) -8/Materials (discovered 3 exits: *Fac x3) -7/Factory (discovered 4 exits: *Fac / *Sto / *Low x2) -7/Storage History --------- Turn | Location | Event 1 | -11/Scrapyard | Discovered new exit (range 2) 27 | -11/Scrapyard | Entered Materials 207 | -10/Materials | Discovered new exit (range 16) 308 | -10/Materials | Build established: Mutant 395 | -10/Materials | Discovered new exit (range 15) 508 | -10/Materials | Discovered new exit (range 11) 860 | -10/Materials | Discovered new exit (range 11) 928 | -10/Materials | Discovered new exit (range 5) 1042 | -10/Materials | Entered Mines 1124 | -10/Mines | Joined a pair of Derelicts in attacking an 0b10 outpost 1168 | -10/Mines | Discovered new exit (range 12) 1256 | -10/Mines | Deemed a non-threat by the Exiles lab entrance 1257 | -10/Mines | Discovered new exit (range 5) 1472 | -10/Mines | Received a Rocket Launcher from a helpful Derelict 1558 | -10/Mines | A weapon hastily lodged in a ceiling crevice suddenly fell to the ground 1567 | -10/Mines | Discovered new exit (range 16) 1816 | -10/Mines | Entered Exiles 1833 | -10/Exiles | Discovered new exit (range 15) 1860 | -10/Exiles | Met 8R-AWN 1877 | -10/Exiles | Met EX-HEX 1946 | -10/Exiles | Met EX-DEC 1980 | -10/Exiles | Visited The Gauntlet 2142 | -10/Exiles | Met EX-BIN 2156 | -10/Exiles | Aligned with FarCom system 2157 | -10/Exiles | Given EX-Vault access code 2223 | -10/Exiles | Opened EX-Vault 2228 | -10/Exiles | Found Prototype Energy Cannon 2229 | -10/Exiles | Identified Latent Energy Streamer 2252 | -10/Exiles | Warned to stay clear of 0b10 Research branches 2328 | -10/Exiles | Discovered new exit (range 10) 2469 | -10/Exiles | Left Exiles lab with Latent Energy Streamer 2469 | -10/Exiles | Entered Mines 2489 | -9/Mines | Discovered new exit (range 11) 2527 | -9/Mines | Assisted by bots powering up and referring to "LRC-V3" 2670 | -9/Mines | Learned location of Storage (-7) 2749 | -9/Mines | Discovered new exit (range 4) 2794 | -9/Mines | Assembled infested the area 2833 | -9/Mines | Entered Materials 2833 | -8/Materials | Evolved 4 slots: Power x1, Propulsion x1, Utility x1, Weapon x1 3021 | -8/Materials | Garrison activated, responded to threat 3123 | -8/Materials | Build established: Skirmisher 3261 | -8/Materials | Discovered new exit (range 7) 3614 | -8/Materials | Lost 3 parts (1p2w) 5287 | -8/Materials | Discovered new exit (range 9) 6323 | -8/Materials | Repaired Imp. Grenade Launcher 6351 | -8/Materials | Repaired Lrg. Storage Unit 6446 | -8/Materials | Discovered new exit (range 4) 6749 | -8/Materials | Entered Factory 6749 | -7/Factory | Evolved 2 slots: Propulsion x1, Utility x1 6966 | -7/Factory | Repaired Hardlight Generator 8428 | -7/Factory | Build established: Hacker-Skirmisher 8927 | -7/Factory | Identified exit to Garrison 9294 | -7/Factory | Destroyed 8 combat bots 9520 | -7/Factory | Discovered new exit (range 5) 9630 | -7/Factory | Discovered new exit (range 6) 9830 | -7/Factory | Repaired Gauss Rifle 10309 | -7/Factory | Discovered new exit (range 12) 10337 | -7/Factory | Discovered new exit (range 16) 10461 | -7/Factory | Identified exit to Factory 10478 | -7/Factory | Identified exit to Lower Caves 10747 | -7/Factory | Build established: Skirmisher 10871 | -7/Factory | Core integrity fell below 50% 10880 | -7/Factory | Core integrity fell below 20% 10901 | -7/Factory | Lost 8 parts (1p3n4w) 11144 | -7/Factory | Build established: Mutant 11942 | -7/Factory | Repaired Gauss Rifle 12657 | -7/Factory | Build established: Skirmisher 13327 | -7/Factory | Entered Storage 14026 | -7/Storage | Destroyed by Y-54 Guardian with Gatling Laser Last Messages --------------- 13917_ Acquired Prc. Grenade Launcher. 13919_ Dropped Lgt. Nuclear Core. 13919_ Dropped Mic. Nuclear Core. 13921_ Acquired Prc. Grenade Launcher. 13934_ K-01 Serf collects debris. 13946_ Connecting with Door Terminal... >>Open(Door) Sealed Heavy Doors opened. 13951_ Dropped Adv. EMP Blaster. 13952_ Dropped Prc. Grenade Launcher. 13954_ Acquired Prototype Ballistic Cannon. 13955_ Identified Mni. Assault Cannon. 13960_ Acquired Prototype Ballistic Gun. 13960_ Identified Prc. Assault Rifle. 13961_ Discarded Core Analyzer. 13976_ R-06 Scavenger collects Lgt. Ion Engine. 13976_ W-25 Informer distress signal alerts nearby ally. 13981_ W-25 Informer destroyed. 13996_ Acquired 26 matter. 14009_ Acquired 41 matter. Map ----- +----------------------------------------------------+ | | | | | | | | | | | | | | | | | | | | | | | | | | | | | | | | | | | | | ?????????????????????????????????????????????????? | | ?????????????????????????????????????????????##### | | ?????????????????????????????????????????????# """ | | ???????????????????######????????## #####?####""R" | | ??????????????###### ###### ######"" " | | ??????????????? "" = [ ! | | ???????????????????# T | | ???????????????????# @ ! Y = | | ???????????????????# ###### ########## | | ???????????????????###+##?????????## ## ##?????? | | ???????????????????????????????????# #########?? | | ???????????????????????????######### #### ]]]#?? | | ???????????????????????????#[[ # # ##T# ]] #?? | | ???????????????????????????#[[ # # " #?? | | ???????????????????????????#[ + + [ **#?? | | ???????????????????????????# ]] # # [" ] #?? | | ???????????o???????????????#]] #T## # #!!]]#?? | | ???????????????????????????#]]] #### #########?? | | ???????????????????????????######??# #?????????? | | ???????????????????????????????????" #?????????? | | ???????????????????????????????????# ?????????? | | ??????????????????????????????????? ?????????? | | ??????????????????????????????????? #????????? | | ??????????????????????????????????? % #????????? | | ??????????????????????????????????? #????????? | | ??????????????????????????????????? #????????? | | ???????????????????????????????????# #????????? | | ???????????????????????????????????# ##????????? | | ???????????????????????????????????# #?????????? | | ???????????????????????????????????? ??????????? | | ?????????????????????????????????????????????????? | | ?????????????????????????????????????????????????? | +----------------------------------------------------+ Best States ------------- Heat Dissipation 34 Energy Generation 31 Energy Capacity 1010 Matter Stores 300 Matter Capacity 300 Sight Range 16 Robot Scan Range 15 Terrain Scan Density 10 ECM Strength 2 Armor Coverage 150 Resistance: KI 20 Resistance: TH 20 Resistance: EX 20 Resistance: EM 20 Resistance: I 20 Resistance: S 20 Resistance: P 20 Core Shielding 20 Evasion (%) 55 Targeting Accuracy 8 Core Analysis 6 Kinecelleration 30 Offensive Hacking 20 Item Schematics ----------------- Adv. ECM Suite | -8/Materials | Scanalyzed Hacking Suite | -8/Materials | Scanalyzed Lrg. Storage Unit | -8/Materials | Scanalyzed Aluminum Leg | -8/Materials | Scanalyzed Rocket Launcher | -8/Materials | Scanalyzed Imp. Signal Interpreter | -8/Materials | Scanalyzed Remote Datajack | -7/Factory | Scanalyzed Robot Schematics ------------------ None Fabricated ------------ Nothing Alien Tech Used ----------------- None Achievements -------------- GoHome() It's Just You Slippery One Challenges ------------ None Game ------ Seed ElectronAlertNullifier Manual? 0 Play Time 02:49:27 Cumulative 10.6 hours Start 2024.04.16 @ 13:01:07 End 2024.04.16 @ 20:54:45 Sessions 1 Manual Loads 0 Difficulty Adventurer Special Mode None Game No. 10 Rogue 6 Adventurer 4 Explorer 0 Win Type - Total 0 Types 0/0/0/0/0/0/0/0/0 Lore% 13 Gallery% 18 Achievement% 17 Wizard Run 0 Options --------- Layout 0 ASCII 0 Keyboard 0 Movement Mouse Keybinds 0 Fullscreen 2 Font 18/X11 Map View 76x50 Zoom Use 1% Tactical HUD 1 Map Filters NONE Filters NONE Steam 1 RUN: 443d1b1e-5dbf-4a0c-a991-8ca6f984f037